fUSD/lending_fUSD_20250521
["ID","MTS","AMOUNT","RATE_DAILY","PERIOD"]
[361819374,1747823570510,-420.0,0.00035342,5]
[361819375,1747823570527,-2132.67,0.00035342,5]
[361819376,1747823570544,-539.66,0.00035342,5]
[361819377,1747823570561,-1108.21,0.00035342,5]
[361819378,1747823570590,-420.0,0.00035342,5]
[361819379,1747823570609,-1448.56,0.00035342,5]
[361819380,1747823570626,-420.0,0.00035342,5]
[361819381,1747823570645,-1231.09,0.00035342,5]
[361819382,1747823570664,-1449.81,0.00035342,5]
[361819383,1747823570681,-420.0,0.00035342,5]
[361819384,1747823570698,-2507.82,0.00035342,5]
[361819385,1747823570716,-461.55,0.00035342,5]
[361819386,1747823570734,-420.0,0.00035342,5]
[361819387,1747823570752,-2269.59,0.00035342,5]
[361819388,1747823570770,-3289.43,0.00035342,5]
[361819389,1747823570788,-1017.25,0.00035342,5]
[361819390,1747823570807,-1196.46,0.00035342,5]
[361819391,1747823570824,-420.0,0.00035342,5]
[361819392,1747823570843,-1902.38,0.00035342,5]
[361819393,1747823570864,-4528.11,0.00035342,5]
[361819394,1747823570882,-437.58,0.00035342,5]
[361819395,1747823570899,-2709.01,0.00035342,5]
[361819396,1747823570918,-934.68,0.00035342,5]
[361819397,1747823570936,-644.31,0.00035342,5]
[361819398,1747823570953,-3000.52,0.00035342,5]
[361819399,1747823570972,-2558.61,0.00035342,5]
[361819400,1747823570991,-919.21,0.00035342,5]
[361819401,1747823571009,-420.0,0.00035342,5]
[361819402,1747823571028,-3800.75,0.00035342,5]
[361819403,1747823571046,-1016.83,0.00035342,5]
[361819404,1747823571065,-1283.86,0.00035342,5]
[361819405,1747823571083,-5012.54,0.00035342,5]
[361819406,1747823571100,-4257.36,0.00035342,5]
[361819407,1747823571118,-420.0,0.00035342,5]
[361819408,1747823571135,-420.0,0.00035342,5]
[361819409,1747823571153,-2661.46,0.00035342,5]
[361819410,1747823571169,-420.0,0.00035342,5]
[361819411,1747823571187,-420.0,0.00035342,5]
[361819412,1747823571204,-7175.57,0.00035342,5]
[361819413,1747823571222,-1626.84,0.00035342,5]
[361819414,1747823571241,-420.0,0.00035342,5]
[361819415,1747823571260,-7478.95,0.00035342,5]
[361819416,1747823571278,-1297.42,0.00035342,5]
[361819417,1747823571296,-1050.66,0.00035342,5]
[361819418,1747823571314,-420.0,0.00035342,5]
[361819419,1747823571332,-459.54,0.00035342,5]
[361819420,1747823571349,-3186.22,0.00035342,5]
[361819421,1747823571365,-1603.59,0.00035342,5]
[361819422,1747823571386,-1706.72,0.00035342,5]
[361819423,1747823571864,-1118.07,0.00035342,5]
[361819424,1747823571894,-3456.53,0.00035342,5]
[361819425,1747823571904,-1819.17,0.00035342,5]
[361819426,1747823571914,-477.62,0.00035342,5]
[361819427,1747823571925,-500.47,0.00035342,5]
[361819428,1747823571935,-1245.18,0.00035342,5]
[361819429,1747823571945,-864.67,0.00035342,5]
[361819430,1747823571955,-485.82,0.00035342,5]
[361819431,1747823571964,-1044.28,0.00035342,5]
[361819432,1747823571975,-483.53,0.00035342,5]
[361819433,1747823571984,-2279.99,0.00035342,5]
[361819434,1747823571993,-501.83829875,0.00035342,5]
[361819435,1747823572003,-1093.42,0.00035342,5]
[361819436,1747823572012,-773.61,0.00035342,5]
[361819437,1747823572022,-1587.6,0.00035342,5]
[361819438,1747823572033,-2000.0,0.00035342,5]
[361819439,1747823572043,-3023.35,0.00035342,5]
[361819440,1747823572054,-2681.61,0.00035342,5]
[361819441,1747823572064,-420.0,0.00035342,5]
[361819442,1747823572075,-3921.51,0.00035342,5]
[361819443,1747823572085,-774.74,0.00035342,5]
[361819444,1747823572095,-11832.32,0.00035342,5]
[361819445,1747823572106,-1140.49,0.00035342,5]
[361819446,1747823572116,-716.85,0.00035342,5]
[361819447,1747823572126,-1451.14,0.00035342,5]
[361819448,1747823572136,-4169.63,0.00035342,5]
[361819449,1747823572146,-1980.16,0.00035342,5]
[361819450,1747823572156,-614.3,0.00035342,5]
[361819451,1747823572166,-478.74,0.00035342,5]
[361819452,1747823572176,-1064.83,0.00035342,5]
[361819453,1747823572186,-1031.8,0.00035342,5]
[361819454,1747823572195,-2328.19,0.00035342,5]
[361819455,1747823572205,-420.0,0.00035342,5]
[361819456,1747823572215,-2178.09,0.00035342,5]
[361819457,1747823572224,-595.22,0.00035342,5]
[361819458,1747823572234,-420.0,0.00035342,5]
[361819459,1747823572244,-12779.36,0.00035342,5]
[361819460,1747823572253,-3199.69,0.00035342,5]
[361819461,1747823572264,-464.93,0.00035342,5]
[361819462,1747823572274,-1385.93,0.00035342,5]
[361819463,1747823572283,-3624.48,0.00035342,5]
[361819464,1747823572293,-1592.89,0.00035342,5]
[361819465,1747823572304,-420.0,0.00035342,5]
[361819466,1747823572314,-420.0,0.00035342,5]
[361819467,1747823572324,-3239.25,0.00035342,5]
[361819468,1747823572334,-420.0,0.00035342,5]
[361819469,1747823572343,-4626.37,0.00035342,5]
[361819470,1747823572355,-477.0,0.00035342,5]
[361819471,1747823572365,-1377.38,0.00035342,5]
[361819472,1747823572376,-613.45,0.00035342,5]
[361819473,1747823572389,-2100.46,0.00035342,5]
[361819474,1747823572399,-232873.01,0.00035342,5]
[361819475,1747823572409,-420.0,0.00035342,5]
[361819476,1747823572419,-2870.6,0.00035342,5]
[361819477,1747823572431,-420.0,0.00035342,5]
[361819478,1747823572441,-420.0,0.00035342,5]
[361819479,1747823572452,-544.44,0.00035342,5]
[361819480,1747823572462,-2582.79,0.00035342,5]
[361819481,1747823572472,-1455.85,0.00035342,5]
[361819482,1747823572482,-3817.8,0.00035342,5]
[361819483,1747823572492,-1140.2,0.00035342,5]
[361819484,1747823572503,-1001.8,0.00035342,5]
[361819485,1747823572513,-814.19,0.00035342,5]
[361819486,1747823572522,-24741.12,0.00035342,5]
[361819487,1747823572532,-746.18,0.00035342,5]
[361819488,1747823572542,-1332.61,0.00035342,5]
[361819489,1747823572552,-847.4,0.00035342,5]
[361819490,1747823572562,-6653.58,0.00035342,5]
[361819491,1747823572571,-2208.36,0.00035342,5]
[361819492,1747823572582,-420.0,0.00035342,5]
[361819493,1747823572592,-3466.92,0.00035342,5]
[361819494,1747823572603,-756.27,0.00035342,5]
[361819495,1747823572613,-2780.98,0.00035342,5]
[361819496,1747823572623,-4377.12,0.00035342,5]
[361819497,1747823572633,-3727.2,0.00035342,5]
[361819498,1747823572643,-43430.9,0.00035342,5]
[361819499,1747823572653,-662.42,0.00035342,5]
[361819500,1747823572663,-1355.36,0.00035342,5]
[361819501,1747823572673,-1646.2,0.00035342,5]
[361819502,1747823572683,-420.0,0.00035342,5]
[361819503,1747823572694,-3823.68,0.00035342,5]
[361819504,1747823572704,-420.0,0.00035342,5]
[361819505,1747823572714,-524.85198989,0.00035342,5]
[361819506,1747823572724,-1929.18,0.00035342,5]
[361819507,1747823572733,-692.1,0.00035342,5]
[361819508,1747823572743,-1375.19,0.00035342,5]
[361819509,1747823572753,-694.13,0.00035342,5]
[361819510,1747823572763,-27430.46,0.00035342,5]
[361819511,1747823572772,-2620.97,0.00035342,5]
[361819512,1747823572782,-1035.87,0.00035342,5]
[361819513,1747823572792,-8392.23,0.00035342,5]
[361819514,1747823572801,-3873.45,0.00035342,5]
[361819515,1747823572811,-831.34,0.00035342,5]
[361819516,1747823572822,-683.8,0.00035342,5]
[361819517,1747823572832,-420.0,0.00035342,5]
[361819518,1747823572842,-648.18,0.00035342,5]
[361819519,1747823572854,-333.94,0.00035342,5]
[361819520,1747823572865,-420.0,0.00035342,5]
[361819521,1747823572874,-2236.59,0.00035342,5]
[361819522,1747823572884,-862.9,0.00035342,5]
[361819523,1747823572894,-2431.99,0.00035342,5]
[361819524,1747823572905,-2055.72,0.00035342,5]
[361819525,1747823572915,-30819.65,0.00035342,5]
[361819526,1747823572925,-426.36,0.00035342,5]
[361819527,1747823572935,-3529.5,0.00035342,5]
[361819528,1747823572945,-420.0,0.00035342,5]
[361819529,1747823572955,-248.86881477,0.00035342,5]
[361819530,1747823572966,-420.0,0.00035342,5]
[361819531,1747823572976,-507.94,0.00035342,5]
[361819532,1747823572986,-7158.91,0.00035342,5]
[361819533,1747823572996,-1372.96,0.00035342,5]
[361819534,1747823573006,-11263.62,0.00035342,5]
[361819535,1747823573016,-1395.97,0.00035342,5]
[361819536,1747823573026,-10218.82,0.00035342,5]
[361819537,1747823573035,-11955.57,0.00035342,5]
[361819538,1747823573046,-420.0,0.00035342,5]
[361819539,1747823573056,-903.34,0.00035342,5]
[361819540,1747823573066,-4237.43,0.00035342,5]
[361819541,1747823573076,-1156.02,0.00035342,5]
[361819542,1747823573085,-1250.1,0.00035342,5]
[361819543,1747823573095,-1940.56,0.00035342,5]
[361819544,1747823573107,-1535.0,0.00035342,5]
[361819545,1747823573117,-2611.65,0.00035342,5]
[361819546,1747823573126,-2088.87,0.00035342,5]
[361819547,1747823573136,-604.9,0.00035342,5]
[361819548,1747823573146,-436.47,0.00035342,5]
[361819549,1747823573155,-3994.4,0.00035342,5]
[361819550,1747823573165,-512.59,0.00035342,5]
[361819551,1747823573175,-4967.59,0.00035342,5]
[361819552,1747823573185,-997.3,0.00035342,5]
[361819553,1747823573194,-420.0,0.00035342,5]
[361819554,1747823573204,-186.73473334,0.00035342,5]
[361819555,1747823573214,-6358.26,0.00035342,5]
[361819556,1747823573224,-2461.55,0.00035342,5]
[361819557,1747823573234,-420.0,0.00035342,5]
[361819558,1747823573244,-3960.15,0.00035342,5]
[361819559,1747823573254,-2650.09,0.00035342,5]
[361819560,1747823573264,-1029.17,0.00035342,5]
[361819561,1747823573274,-2763.51,0.00035342,5]
[361819562,1747823573284,-655.48,0.00035342,5]
[361819563,1747823573294,-3823.46,0.00035342,5]
[361819564,1747823573304,-420.0,0.00035342,5]
[361819565,1747823573314,-420.0,0.00035342,5]
[361819566,1747823573324,-420.0,0.00035342,5]
[361819567,1747823573333,-420.0,0.00035342,5]
[361819568,1747823573343,-2138.94,0.00035342,5]
[361819569,1747823573355,-3514.65,0.00035342,5]
[361819570,1747823573365,-578.47,0.00035342,5]
[361819571,1747823573376,-420.0,0.00035342,5]
[361819572,1747823573389,-1778.66,0.00035342,5]
[361819573,1747823573399,-7467.95,0.00035342,5]
[361819574,1747823573408,-4923.96,0.00035342,5]
[361819575,1747823573419,-420.87,0.00035342,5]
[361819576,1747823573428,-420.0,0.00035342,5]
[361819577,1747823573438,-1388.95,0.00035342,5]
[361819578,1747823573447,-1642.25,0.00035342,5]
[361819579,1747823573457,-15894.82,0.00035342,5]
[361819580,1747823573466,-7928.56,0.00035342,5]
[361819581,1747823573476,-3648.84,0.00035342,5]
[361819582,1747823573485,-535.54,0.00035342,5]
[361819583,1747823573494,-420.0,0.00035342,5]
[361819584,1747823573505,-18415.06,0.00035342,5]
[361819585,1747823573515,-420.0,0.00035342,5]
[361819586,1747823573524,-2111.71,0.00035342,5]
[361819587,1747823573534,-584.64,0.00035342,5]
[361819588,1747823573543,-1096.3,0.00035342,5]
[361819589,1747823573553,-420.0,0.00035342,5]
[361819590,1747823573563,-2534.37,0.00035342,5]
[361819591,1747823573572,-420.0,0.00035342,5]
[361819592,1747823573582,-2727.38,0.00035342,5]
[361819593,1747823573592,-481.82,0.00035342,5]
[361819594,1747823573603,-4064.18,0.00035342,5]
[361819595,1747823573613,-1605.11,0.00035342,5]
[361819596,1747823573623,-2791.01,0.00035342,5]
[361819597,1747823573632,-420.0,0.00035342,5]
[361819598,1747823573643,-583.63,0.00035342,5]
[361819599,1747823573653,-3277.38,0.00035342,5]
[361819600,1747823573662,-1946.19,0.00035342,5]
[361819601,1747823573672,-4162.95,0.00035342,5]
[361819602,1747823573682,-486.64,0.00035342,5]
[361819603,1747823573693,-1793.09,0.00035342,5]
[361819604,1747823573703,-2365.3,0.00035342,5]
[361819605,1747823573713,-5030.39,0.00035342,5]
[361819606,1747823573722,-853.5,0.00035342,5]
[361819607,1747823573732,-1065.78,0.00035342,5]
[361819608,1747823573742,-5351.26,0.00035342,5]
[361819609,1747823573752,-8618.58,0.00035342,5]
[361819610,1747823573767,-420.0,0.00035342,5]
[361819611,1747823573778,-1488.03,0.00035342,5]
[361819612,1747823573788,-3564.21,0.00035342,5]
[361819613,1747823573798,-5387.66,0.00035342,5]
[361819614,1747823573808,-1284.33,0.00035342,5]
[361819615,1747823573818,-4366.01,0.00035342,5]
[361819616,1747823573827,-420.0,0.00035342,5]
[361819617,1747823573837,-420.0,0.00035342,5]
[361819618,1747823573847,-643.95,0.00035342,5]
[361819619,1747823573859,-11304.41,0.00035342,5]
[361819620,1747823573869,-751.7,0.00035342,5]
[361819621,1747823573880,-873.4,0.00035342,5]
[361819622,1747823573890,-781.82,0.00035342,5]
[361819623,1747823573899,-1096.95,0.00035342,5]
[361819624,1747823573909,-441.74,0.00035342,5]
[361819625,1747823573919,-420.0,0.00035342,5]
[361819626,1747823573930,-871.43,0.00035342,5]
[361819627,1747823573941,-420.0,0.00035342,5]
[361819628,1747823573951,-778.01,0.00035342,5]
[361819629,1747823573961,-3424.15,0.00035342,5]
[361819630,1747823573972,-6336.25,0.00035342,5]
[361819631,1747823573982,-420.0,0.00035342,5]
[361819632,1747823573992,-575.11,0.00035342,5]
[361819633,1747823574002,-2227.33,0.00035342,5]
[361819634,1747823574011,-469.12,0.00035342,5]
[361819635,1747823574021,-2778.38,0.00035342,5]
[361819636,1747823574030,-5264.38,0.00035342,5]
[361819637,1747823574040,-2282.35,0.00035342,5]
[361819638,1747823574050,-380.4513611,0.00035342,5]
[361819639,1747823574061,-306.86875302,0.00035342,5]
[361819640,1747823574071,-420.0,0.00035342,5]
[361819641,1747823574082,-2508.06,0.00035342,5]
[361819642,1747823574092,-477.54,0.00035342,5]
[361819643,1747823574103,-420.0,0.00035342,5]
[361819644,1747823574113,-45711.39,0.00035342,5]
[361819645,1747823574123,-1438.01,0.00035342,5]
[361819646,1747823574133,-420.0,0.00035342,5]
[361819647,1747823574143,-420.0,0.00035342,5]
[361819648,1747823574153,-492.73,0.00035342,5]
[361819649,1747823574163,-2994.99,0.00035342,5]
[361819650,1747823574174,-2847.74,0.00035342,5]
[361819651,1747823574184,-845.16,0.00035342,5]
[361819652,1747823574194,-7033.02,0.00035342,5]
[361819653,1747823574204,-420.0,0.00035342,5]
[361819654,1747823574213,-20631.06,0.00035342,5]
[361819655,1747823574223,-1653.01,0.00035342,5]
[361819656,1747823574233,-440.6,0.00035342,5]
[361819657,1747823574243,-480.69,0.00035342,5]
[361819658,1747823574253,-908.75,0.00035342,5]
[361819659,1747823574263,-420.0,0.00035342,5]
[361819660,1747823574273,-1811.64,0.00035342,5]
[361819661,1747823574283,-420.0,0.00035342,5]
[361819662,1747823574292,-1675.59,0.00035342,5]
[361819663,1747823574301,-1341.01,0.00035342,5]
[361819664,1747823574311,-1620.28,0.00035342,5]
[361819665,1747823574321,-2039.96,0.00035342,5]
[361819666,1747823574330,-659.87,0.00035342,5]
[361819667,1747823574340,-2331.07,0.00035342,5]
[361819668,1747823574349,-1650.39,0.00035342,5]
[361819669,1747823574361,-1130.47,0.00035342,5]
[361819670,1747823574371,-8529.77,0.00035342,5]
[361819671,1747823574383,-1170.52,0.00035342,5]
[361819672,1747823574393,-1019.14,0.00035342,5]
[361819673,1747823574404,-13852.49,0.00035342,5]
[361819674,1747823574414,-594.46,0.00035342,5]
[361819675,1747823574424,-420.0,0.00035342,5]
[361819676,1747823574434,-420.0,0.00035342,5]
[361819677,1747823574444,-528.88,0.00035342,5]
[361819678,1747823574455,-420.0,0.00035342,5]
[361819679,1747823574467,-729.81,0.00035342,5]
[361819680,1747823574478,-6448.31,0.00035342,5]
[361819681,1747823574488,-1260.39,0.00035342,5]
[361819682,1747823574498,-157.265004,0.00035342,5]
[361819683,1747823574508,-4031.81,0.00035342,5]
[361819684,1747823574518,-1826.19,0.00035342,5]
[361819685,1747823574528,-15980.3,0.00035342,2]
[361819686,1747823574539,-569.82,0.00035342,5]
[361819687,1747823574549,-1991.55,0.00035342,5]
[361819688,1747823574560,-420.0,0.00035342,5]
[361819689,1747823574569,-420.0,0.00035342,5]
[361819690,1747823574580,-711.84,0.00035342,5]
[361819691,1747823574590,-1316.77,0.00035342,5]
[361819692,1747823574599,-932.88,0.00035342,5]
[361819693,1747823574611,-1559.3,0.00035342,5]
[361819694,1747823574621,-1828.91,0.00035342,5]
[361819695,1747823574631,-1672.61,0.00035342,5]
[361819696,1747823574641,-6643.48,0.00035342,5]
[361819697,1747823574650,-5987.12,0.00035342,5]
[361819698,1747823574661,-420.0,0.00035342,5]
[361819699,1747823574670,-4970.74,0.00035342,5]
[361819700,1747823574681,-420.0,0.00035342,5]
[361819701,1747823574692,-908.99,0.00035342,5]
[361819702,1747823574702,-1754.62,0.00035342,5]
[361819703,1747823574713,-636.17,0.00035342,5]
[361819704,1747823574724,-907.69,0.00035342,5]
[361819705,1747823574735,-434.27,0.00035342,5]
[361819706,1747823574745,-420.0,0.00035342,5]
[361819707,1747823574755,-14282.24,0.00035342,5]
[361819708,1747823574765,-420.0,0.00035342,5]
[361819709,1747823574775,-1727.02,0.00035342,5]
[361819710,1747823574786,-2354.7,0.00035342,5]
[361819711,1747823574797,-2934.17,0.00035342,5]
[361819712,1747823574807,-420.0,0.00035342,5]
[361819713,1747823574818,-2098.09,0.00035342,5]
[361819714,1747823574829,-2370.12,0.00035342,5]
[361819715,1747823574839,-1608.41,0.00035342,5]
[361819716,1747823574850,-635.77,0.00035342,5]
[361819717,1747823574860,-2448.57,0.00035342,5]
[361819718,1747823574870,-565.39,0.00035342,5]
[361819719,1747823574880,-832.67,0.00035342,5]
[361819720,1747823574890,-2132.27,0.00035342,5]
[361819721,1747823574901,-532.78741648,0.00035342,5]
[361819722,1747823574911,-1444.81,0.00035342,5]
[361819723,1747823574922,-674.57,0.00035342,5]
[361819724,1747823574933,-1244.04,0.00035342,5]
[361819725,1747823574943,-14461.5,0.00035342,5]
[361819726,1747823574953,-4167.33,0.00035342,5]
[361819727,1747823574964,-5215.67,0.00035342,5]
[361819728,1747823574974,-888.13,0.00035342,5]
[361819729,1747823574983,-426.28041776,0.00035342,5]
[361819730,1747823574994,-207938.64,0.00035342,5]
[361819731,1747823575004,-548.09,0.00035342,5]
[361819732,1747823575015,-420.0,0.00035342,5]
[361819733,1747823575026,-2319.06,0.00035342,5]
[361819734,1747823575036,-3257.11,0.00035342,5]
[361819735,1747823575046,-1507.21,0.00035342,5]
[361819736,1747823575056,-1493.55,0.00035342,5]
[361819737,1747823575065,-2557.88,0.00035342,5]
[361819738,1747823575075,-1088.44,0.00035342,5]
[361819739,1747823575085,-2873.2,0.00035342,5]
[361819740,1747823575094,-420.0,0.00035342,5]
[361819741,1747823575105,-697.67,0.00035342,5]
[361819742,1747823575115,-420.0,0.00035342,5]
[361819743,1747823575124,-5582.21,0.00035342,5]
[361819744,1747823575134,-480.01,0.00035342,5]
[361819745,1747823575468,-2282.96,0.00035342,5]
[361819746,1747823575496,-1657.0,0.00035342,5]
[361819747,1747823575506,-18765.11,0.00035342,5]
[361819748,1747823575516,-799.92,0.00035342,5]
[361819749,1747823575527,-1063.9,0.00035342,5]
[361819750,1747823575537,-420.0,0.00035342,5]
[361819751,1747823575546,-673.17,0.00035342,5]
[361819752,1747823575556,-420.0,0.00035342,5]
[361819753,1747823575566,-3847.23,0.00035342,5]
[361819754,1747823575576,-520.15502309,0.00035342,5]
[361819755,1747823575586,-549.05,0.00035342,5]
[361819756,1747823575596,-474.32,0.00035342,5]
[361819757,1747823575606,-2564.95,0.00035342,5]
[361819758,1747823575616,-420.0,0.00035342,5]
[361819759,1747823575626,-1818.07,0.00035342,5]
[361819760,1747823575636,-42262.48,0.00035342,5]
[361819761,1747823575645,-420.0,0.00035342,5]
[361819762,1747823575655,-1719.68,0.00035342,5]
[361819763,1747823575665,-4510.74,0.00035342,5]
[361819764,1747823575675,-516.93,0.00035342,5]
[361819765,1747823575686,-3137.08,0.00035342,5]
[361819766,1747823575696,-506.82,0.00035342,5]
[361819767,1747823575706,-9532.22,0.00035342,5]
[361819768,1747823575716,-420.0,0.00035342,5]
[361819769,1747823575726,-1001.23,0.00035342,5]
[361819770,1747823575736,-420.0,0.00035342,5]
[361819771,1747823575746,-1349.86,0.00035342,5]
[361819772,1747823575756,-1554.78,0.00035342,5]
[361819773,1747823575766,-874.84,0.00035342,5]
[361819774,1747823575776,-2359.68,0.00035342,5]
[361819775,1747823575786,-627.61,0.00035342,5]
[361819776,1747823575796,-670.93,0.00035342,5]
[361819777,1747823575806,-420.0,0.00035342,5]
[361819778,1747823575816,-1909.1,0.00035342,5]
[361819779,1747823575826,-3667.82,0.00035342,5]
[361819780,1747823575836,-713.73,0.00035342,5]
[361819781,1747823575846,-420.0,0.00035342,5]
[361819782,1747823575857,-39862.72519593,0.00035352,10]
[361819783,1747823575868,-51141.89243892,0.00035356,10]
[361819784,1747823575878,-44750.13313001,0.00035362,10]
[361819785,1747823575889,-2277.74156,0.00035363,10]
[361819786,1747823575899,-64162.96886928,0.00035366,10]
[361819787,1747823575909,-64162.96886928,0.00035394,10]
[361819788,1747823575920,-13521.179863,0.00035396,10]
[361819789,1747823575929,-171.10834137,0.000354,2]
[361819790,1747823575940,-171.10834133,0.000354,2]
[361819791,1747823575950,-171.10834133,0.000354,2]
[361819792,1747823575960,-171.10834133,0.000354,2]
[361819793,1747823575970,-171.10834133,0.000354,2]
[361819794,1747823575980,-171.10834133,0.000354,2]
[361819795,1747823575990,-171.10834133,0.000354,2]
[361819796,1747823576001,-171.10834133,0.000354,2]
[361819797,1747823576011,-171.10834133,0.000354,2]
[361819798,1747823576021,-171.10834133,0.000354,2]
[361819799,1747823576031,-171.10834133,0.000354,2]
[361819800,1747823576041,-171.10834133,0.000354,2]
[361819801,1747823576051,-171.10834133,0.000354,2]
[361819802,1747823576061,-171.10834133,0.000354,2]
[361819803,1747823576071,-171.10834133,0.000354,2]
[361819804,1747823576081,-171.10834133,0.000354,2]
[361819805,1747823576091,-171.10834133,0.000354,2]
[361819806,1747823576100,-171.10834133,0.000354,2]
[361819807,1747823576111,-171.10834133,0.000354,2]
[361819808,1747823576121,-171.10834133,0.000354,2]
[361819809,1747823576131,-2449.01001201,0.00035417,10]
[361819810,1747823576141,-2449.01001201,0.00035423,10]
[361819811,1747823576152,-64162.96886928,0.00035432,10]
[361819812,1747823576163,-2000.0,0.00035438,3]
[361819813,1747823576173,-2449.01001201,0.00035439,10]
[361819814,1747823576183,-13521.179863,0.00035446,10]
[361819815,1747823576193,-51141.89243892,0.00035452,10]
[361819816,1747823576203,-2277.74156,0.00035452,10]
[361819817,1747823576213,-44750.13313001,0.00035453,10]
[361819818,1747823576223,-2277.74156,0.00035466,10]
[361819819,1747823576233,-822.38316658,0.00035506,2]
[361819820,1747823576243,-150.0,0.00035615,2]
[361819821,1747823576254,-400.0,0.00035616,60]
[361819822,1747823576264,-12500.0,0.00035616,5]
[361819823,1747823576274,-420.0,0.00035616,5]
[361819824,1747823576284,-150.0,0.00035616,2]
[361819825,1747823576294,-12976.80405149,0.00035616,2]
[361819826,1747823576304,-3223.54438443,0.00035616,5]
[361819827,1747823576314,-176.09622627,0.00035616,5]
[361819828,1747823576324,-868.63,0.00035616,5]
[361819829,1747823576333,-420.0,0.00035616,5]
[361819830,1747823576343,-771.73,0.00035616,5]
[361819831,1747823576354,-1206.97,0.00035616,5]
[361819832,1747823576363,-312.08,0.00035616,5]
[361819833,1747823576374,-1764.15,0.00035616,5]
[361819834,1747823576387,-497.1,0.00035616,5]
[361819835,1747823576398,-550.16,0.00035616,5]
[361819836,1747823576408,-420.0,0.00035616,5]
[361819837,1747823576419,-420.0,0.00035616,5]
[361819838,1747823576637,-420.0,0.00035616,5]
[361819839,1747823576647,-965.56,0.00035616,5]
[361819840,1747823576669,-616.51,0.00035616,5]
[361819841,1747823576682,-420.0,0.00035616,5]
[361819842,1747823576692,-562.65,0.00035616,5]
[361819843,1747823576704,-611.48,0.00035616,5]
[361819844,1747823576715,-420.0,0.00035616,5]
[361819845,1747823576726,-483.47050331,0.00035616,5]
[361819846,1747823576738,-420.0,0.00035616,5]
[361819847,1747823576748,-499.33,0.00035616,5]
[361819848,1747823576759,-506.54,0.00035616,5]
[361819849,1747823576770,-911.46,0.00035616,5]
[361819850,1747823576782,-1153.75,0.00035616,5]
[361819851,1747823576793,-420.0,0.00035616,5]
[361819852,1747823576804,-730.43,0.00035616,5]
[361819853,1747823576815,-420.0,0.00035616,5]
[361819854,1747823576826,-420.0,0.00035616,5]
[361819855,1747823576837,-1697.54,0.00035616,5]
[361819856,1747823576847,-579.77,0.00035616,5]
[361819857,1747823576858,-420.0,0.00035616,5]
[361819858,1747823576869,-420.0,0.00035616,5]
[361819859,1747823576880,-570.61,0.00035616,5]
[361819860,1747823576891,-420.0,0.00035616,5]
[361819861,1747823576902,-455.23750304,0.00035616,5]
[361819862,1747823576912,-420.0,0.00035616,5]
[361819863,1747823576923,-788.01,0.00035616,5]
[361819864,1747823576934,-1490.72,0.00035616,5]
[361819865,1747823576945,-529.56714005,0.00035616,5]
[361819866,1747823576957,-917.84,0.00035616,5]
[361819867,1747823576969,-642.67,0.00035616,5]
[361819868,1747823576980,-325.50169408,0.00035616,5]
[361819869,1747823576991,-901.58,0.00035616,5]
[361819870,1747823577001,-807.74,0.00035616,5]
[361819871,1747823577013,-3015.53,0.00035616,5]
[361819872,1747823577023,-420.0,0.00035616,5]
[361819873,1747823577034,-460.17,0.00035616,5]